[Event "Gideon Japhet ACP Open 2018"]
[Site "Jerusalem"]
[Date "2018.07.03"]
[Round "4"]
[White "Bagrationi, Alexander"]
[Black "Melia, Salome"]
[Result "1-0"]
[ECO "A61"]
[WhiteElo "2539"]
[BlackElo "2392"]
[Annotator "ChessBase"]
[PlyCount "117"]
[EventDate "2018.07.01"]
[EventType "swiss"]
[EventCountry "ISR"]
[SourceTitle "playchess.com"]
[Source "ChessBase"]
[SourceQuality "1"]
[TimeControl "40/5400+30:1800+30"]

1. d4 {[%emt 0:00:00]} Nf6 {[%emt 0:13:24]} 2. c4 {[%emt 0:00:00]} e6 {[%emt 0:00:08]} 3. Nf3 c5 4. d5 {[%emt 0:02:16]} d6 {[%emt 0:01:01]} 5. Nc3 {[%emt 0:00:23]} exd5 {[%emt 0:00:05]} 6. cxd5 {[%emt 0:00:03]} g6 {[%emt 0:00:05]} 7. Bf4 {[%emt 0:00:16]} Bg7 {[%emt 0:01:07]} 8. e3 {[%emt 0:09:54]} O-O {[%emt 0:00:11]} 9. h3 {[%emt 0:00:37]} Qe7 {[%emt 0:08:59]} 10. Be2 {[%emt 0:02:28]} Ne4 {[%emt 0:10:33]} 11. Nxe4 {[%emt 0:08:56]} Qxe4 {[%emt 0:00:02]} 12. Bxd6 {[%emt 0:00:23]} Rd8 {[%emt 0:02:47]} 13. Bxc5 {[%emt 0:06:54]} Bxb2 {[%emt 0:00:32]} 14. Bd4 {[%emt 0:07:28]} Bxd4 {[%emt 0:04:07]} 15. Qxd4 {[%emt 0:00:46]} Qxd4 {[%emt 0:01:56]} 16. Nxd4 {[%emt 0:00:27]} Rxd5 {[%emt 0:00:11]} 17. Rc1 {[%emt 0:01:46]} Nd7 {[%emt 0:02:55]} 18. O-O {[%emt 0:08:00]} Nf6 {[%emt 0:06:06]} 19. Bf3 {[%emt 0:12:36]} Ra5 {[%emt 0:02:12]} 20. Rc2 {[%emt 0:08:24]} Rb8 {[%emt 0:18:28]} 21. Rb1 {[%emt 0:01:32]} Nd7 {[%emt 0:03:39]} 22. Rc7 {[%emt 0:09:55]} Nb6 {[%emt 0:03:19]} 23. Nb5 {[%emt 0:01:41]} Na8 {[%emt 0:07:48]} 24. Rc3 {[%emt 0:01:05]} Rxa2 {[%emt 0:02:38]} 25. Bd5 {[%emt 0:01:09]} Rd2 {[%emt 0:00:22]} 26. Nd4 {[%emt 0:01:06]} Nb6 {[%emt 0:02:05]} 27. Bb3 {[%emt 0:01:44]} Bd7 {[%emt 0:01:30]} 28. Kf1 {[%emt 0:02:25]} Re8 {[%emt 0:01:42]} 29. Rc7 {[%emt 0:00:43]} Re7 {[%emt 0:03:00]} 30. Kg1 {[%emt 0:00:02]} Re5 {[%emt 0:03:33]} 31. Nf3 {[%emt 0:00:53]} Red5 {[%emt 0:00:31]} 32. Nxd2 {[%emt 0:00:18]} Rxd2 {[%emt 0:00:01]} 33. Rxb7 {[%emt 0:00:02]} Nc8 {[%emt 0:00:54]} 34. Rd1 {[%emt 0:00:58]} Rxd1+ {[%emt 0:00:02]} 35. Bxd1 {[%emt 0:00:01]} Be6 {[%emt 0:00:08]} 36. Bb3 {[%emt 0:00:56]} Nd6 {[%emt 0:01:00]} 37. Rb8+ {[%emt 0:00:26]} Kg7 {[%emt 0:00:37]} 38. Bxe6 {[%emt 0:00:02]} fxe6 {[%emt 0:00:04]} 39. Rd8 {[%emt 0:00:11]} Nb5 {[%emt 0:00:32]} 40. Rd7+ {[%emt 0:00:02]} Kf6 {[%emt 0:00:05]} 41. Rb7 {[%emt 0:30:22]} a6 {[%emt 0:30:06]} 42. Rb6 {[%emt 0:00:05]} Nc7 {[%emt 0:00:37]} 43. Rc6 {[%emt 0:00:03]} Nd5 {[%emt 0:00:02]} 44. Rxa6 {[%emt 0:00:05]} h5 {[%emt 0:00:02]} 45. h4 {[%emt 0:00:19]} Kf5 {[%emt 0:00:21]} 46. Kh2 {[%emt 0:00:13]} Nc3 {[%emt 0:00:49]} 47. Ra5+ {[%emt 0:00:34]} Kf6 {[%emt 0:00:02]} 48. f3 {[%emt 0:00:12]} Nd5 {[%emt 0:00:34]} 49. e4 {[%emt 0:03:04]} Nf4 {[%emt 0:00:08]} 50. Kg3 {[%emt 0:00:04]} Nd3 {[%emt 0:00:03]} 51. Ra3 {[%emt 0:00:07]} Nc5 {[%emt 0:00:06]} 52. Rc3 {[%emt 0:00:08]} Nd7 {[%emt 0:00:06]} 53. f4 {[%emt 0:00:08]} e5 {[%emt 0:01:16]} 54. Kf3 {[%emt 0:00:44]} exf4 {[%emt 0:00:04]} 55. Kxf4 {[%emt 0:00:03]} Ne5 {[%emt 0:00:03]} 56. Ra3 {[%emt 0:00:09]} Ng4 {[%emt 0:00:18]} 57. Ra6+ {[%emt 0:00:05]} Kf7 {[%emt 0:00:03]} 58. e5 {[%emt 0:00:20]} Kg7 {[%emt 0:01:24]} 59. Ra8 1-0

[Event "Gideon Japhet ACP Open 2018"]
[Site "Jerusalem"]
[Date "2018.07.03"]
[Round "4"]
[White "Steinberg, Nitzan"]
[Black "Kudischewitsch, David"]
[Result "1/2-1/2"]
[ECO "B01"]
[WhiteElo "2521"]
[BlackElo "2356"]
[Annotator "ChessBase"]
[PlyCount "126"]
[EventDate "2018.07.01"]
[EventType "swiss"]
[EventCountry "ISR"]
[SourceTitle "playchess.com"]
[Source "ChessBase"]
[SourceQuality "1"]
[TimeControl "40/5400+30:1800+30"]

1. e4 d5 {[%emt 0:00:00]} 2. exd5 {[%emt 0:00:00]} Qxd5 {[%emt 0:00:00]} 3. Nc3 {[%emt 0:00:00]} Qd6 {[%emt 0:00:05]} 4. d4 {[%emt 0:00:22]} Nf6 {[%emt 0:00:15]} 5. Nf3 {[%emt 0:00:01]} c6 {[%emt 0:00:33]} 6. Be3 {[%emt 0:00:22]} Bf5 {[%emt 0:00:17]} 7. Bd3 {[%emt 0:13:23]} Bxd3 {[%emt 0:00:06]} 8. Qxd3 {[%emt 0:00:04]} Nbd7 {[%emt 0:00:16]} 9. O-O-O {[%emt 0:01:29]} e6 {[%emt 0:00:08]} 10. Rhe1 {[%emt 0:02:52]} Be7 {[%emt 0:01:10]} 11. h3 {[%emt 0:04:08]} h6 {[%emt 0:00:33]} 12. Kb1 {[%emt 0:04:13]} O-O-O {[%emt 0:00:15]} 13. Ne4 {[%emt 0:01:55]} Nxe4 {[%emt 0:06:59]} 14. Qxe4 {[%emt 0:00:04]} Qd5 {[%emt 0:00:33]} 15. Qd3 {[%emt 0:00:47]} Bd6 {[%emt 0:16:53]} 16. c4 {[%emt 0:00:53]} Qf5 {[%emt 0:00:31]} 17. Qxf5 {[%emt 0:02:26]} exf5 {[%emt 0:00:01]} 18. c5 {[%emt 0:01:10]} Bc7 {[%emt 0:02:50]} 19. d5 {[%emt 0:00:05]} cxd5 {[%emt 0:00:19]} 20. Rxd5 {[%emt 0:00:15]} g6 {[%emt 0:00:02]} 21. Kc2 {[%emt 0:25:58]} Rde8 {[%emt 0:05:17]} 22. Red1 {[%emt 0:02:27]} Nf6 {[%emt 0:00:09]} 23. R5d3 {[%emt 0:00:21]} Ne4 {[%emt 0:02:00]} 24. b4 {[%emt 0:00:39]} a6 {[%emt 0:00:13]} 25. a4 {[%emt 0:00:57]} Rd8 {[%emt 0:05:24]} 26. Kb3 {[%emt 0:06:45]} Rxd3+ {[%emt 0:00:22]} 27. Rxd3 {[%emt 0:00:04]} Re8 {[%emt 0:00:52]} 28. Kc4 {[%emt 0:02:57]} f4 {[%emt 0:02:04]} 29. Bd4 {[%emt 0:02:27]} g5 {[%emt 0:00:05]} 30. b5 {[%emt 0:04:52]} f5 {[%emt 0:00:28]} 31. b6 {[%emt 0:05:24]} Bb8 {[%emt 0:04:30]} 32. Nd2 {[%emt 0:00:20]} Be5 {[%emt 0:02:35]} 33. f3 {[%emt 0:02:56]} Nxd2+ {[%emt 0:06:13]} 34. Rxd2 {[%emt 0:00:04]} Bxd4 {[%emt 0:00:06]} 35. Rxd4 {[%emt 0:04:26]} Re2 {[%emt 0:00:12]} 36. Rd6 {[%emt 0:00:37]} Rxg2 {[%emt 0:00:07]} 37. Rxh6 {[%emt 0:00:50]} g4 {[%emt 0:00:27]} 38. hxg4 {[%emt 0:02:32]} fxg4 {[%emt 0:00:08]} 39. fxg4 {[%emt 0:01:24]} f3 {[%emt 0:01:37]} 40. Rf6 {[%emt 0:01:19]} Rxg4+ {[%emt 0:01:44]} 41. Kd5 {[%emt 0:30:30]} Rxa4 {[%emt 0:35:04]} 42. Rxf3 {[%emt 0:05:43]} Rh4 {[%emt 0:00:29]} 43. Rf5 {[%emt 0:00:00]} Rh8 {[%emt 0:00:00]} 44. Rf7 {[%emt 0:00:00]} Rh5+ {[%emt 0:00:00]} 45. Kd6 {[%emt 0:00:00]} Rh6+ {[%emt 0:00:00]} 46. Ke7 {[%emt 0:00:00]} Rh8 {[%emt 0:00:00]} 47. Rf6 {[%emt 0:00:00]} Rg8 {[%emt 0:00:00]} 48. Ke6 {[%emt 0:00:00]} Rh8 {[%emt 0:00:00]} 49. Kd5 {[%emt 0:00:00]} Rd8+ {[%emt 0:00:00]} 50. Kc4 {[%emt 0:00:00]} Rd1 {[%emt 0:00:00]} 51. Rf8+ {[%emt 0:00:00]} Rd8 {[%emt 0:00:00]} 52. Rf7 {[%emt 0:00:00]} Rd1 {[%emt 0:00:00]} 53. Rf8+ {[%emt 0:00:00]} Rd8 {[%emt 0:00:00]} 54. Rf1 {[%emt 0:00:00]} Rd2 {[%emt 0:00:00]} 55. Kc3 {[%emt 0:00:00]} Rd5 {[%emt 0:00:00]} 56. Rf8+ {[%emt 0:00:00]} Rd8 {[%emt 0:00:00]} 57. Rf6 {[%emt 0:00:00]} Rd1 {[%emt 0:00:00]} 58. Kc4 {[%emt 0:00:00]} Rc1+ {[%emt 0:00:00]} 59. Kd5 {[%emt 0:00:00]} Rd1+ {[%emt 0:00:00]} 60. Ke5 {[%emt 0:00:00]} Re1+ {[%emt 0:00:00]} 61. Kd6 {[%emt 0:00:00]} Rd1+ {[%emt 0:00:00]} 62. Ke7 {[%emt 0:00:00]} Re1+ {[%emt 0:00:00]} 63. Kd6 {[%emt 0:00:00]} Rd1+ {[%emt 0:00:00]} 1/2-1/2

[Event "Gideon Japhet ACP Open 2018"]
[Site "Jerusalem"]
[Date "2018.07.03"]
[Round "4"]
[White "Gruenfeld, Yehuda"]
[Black "Gleizer, Mark"]
[Result "1-0"]
[ECO "B01"]
[WhiteElo "2419"]
[BlackElo "2161"]
[Annotator "NA"]
[PlyCount "81"]
[EventDate "2018.07.01"]
[EventType "swiss"]
[EventCountry "ISR"]
[SourceTitle "playchess.com"]
[Source "ChessBase"]
[SourceQuality "1"]
[TimeControl "40/5400+30:1800+30"]

1. e4 {[%emt 0:00:00]} d5 {[%emt 0:00:00]} 2. exd5 {[%emt 0:01:16]} Qxd5 {[%emt 0:00:00]} 3. Nc3 {[%emt 0:00:04]} Qd6 {[%emt 0:00:00]} 4. d4 {[%emt 0:00:08]} Nf6 {[%emt 0:00:04]} 5. Nf3 {[%emt 0:00:48]} g6 {[%emt 0:00:16]} 6. Ne5 {[%emt 0:05:58]} Bg7 {[%emt 0:00:18]} 7. Be2 {[%emt 0:08:33]} c6 {[%emt 0:08:35]} 8. Bf4 {[%emt 0:02:26]} Qd8 {[%emt 0:04:25]} 9. Qd2 {[%emt 0:03:25]} Be6 {[%emt 0:08:37]} 10. O-O {[%emt 0:06:16]} Nbd7 {[%emt 0:02:38]} 11. Rfe1 {[%emt 0:04:38]} O-O {[%emt 0:08:49]} 12. h3 {[%emt 0:02:52]} Re8 {[%emt 0:04:20]} 13. Nf3 {[%emt 0:07:14]} Bd5 {[%emt 0:03:07]} 14. Nxd5 {[%emt 0:01:12]} cxd5 {[%emt 0:01:29]} 15. Bd3 {[%emt 0:00:09]} a6 {[%emt 0:06:24]} 16. a4 {[%emt 0:02:22]} e6 {[%emt 0:04:41]} 17. Bh6 {[%emt 0:06:15]} Re7 {[%emt 0:04:12]} 18. Bg5 {[%emt 0:03:23]} Qf8 {[%emt 0:05:05]} 19. a5 {[%emt 0:01:50]} Ree8 {[%emt 0:00:59]} 20. Ra3 {[%emt 0:01:18]} Nb8 {[%emt 0:02:34]} 21. Rb3 {[%emt 0:01:15]} Ra7 {[%emt 0:01:19]} 22. Ne5 {[%emt 0:11:01]} Rc8 {[%emt 0:02:36]} 23. Bf4 {[%emt 0:03:56]} Nc6 {[%emt 0:01:20]} 24. Nxc6 {[%emt 0:03:30]} Rxc6 {[%emt 0:00:09]} 25. Ra1 {[%emt 0:00:43]} Qc8 {[%emt 0:03:02]} 26. Ra4 {[%emt 0:02:28]} Bf8 {[%emt 0:01:09]} 27. Qe2 {[%emt 0:01:50]} Ne8 {[%emt 0:02:18]} 28. c4 {[%emt 0:06:04]} dxc4 {[%emt 0:00:38]} 29. Bxc4 {[%emt 0:01:05]} Nd6 {[%emt 0:00:54]} 30. Bd3 {[%emt 0:00:09]} Ra8 {[%emt 0:02:24]} 31. Qf3 {[%emt 0:03:15]} Rb8 {[%emt 0:02:08]} 32. Ra1 {[%emt 0:04:14]} b5 {[%emt 0:02:08]} 33. d5 {[%emt 0:00:47]} exd5 {[%emt 0:00:49]} 34. Qxd5 {[%emt 0:00:08]} Rb7 {[%emt 0:00:25]} 35. Rd1 {[%emt 0:03:05]} Rc5 {[%emt 0:04:21]} 36. Qf3 {[%emt 0:00:26]} Nc4 {[%emt 0:06:25]} 37. Bxc4 {[%emt 0:00:12]} Rxc4 {[%emt 0:00:14]} 38. Rbd3 {[%emt 0:00:04]} Be7 {[%emt 0:01:07]} 39. Bh6 {[%emt 0:02:02]} Rcc7 {[%emt 0:04:21]} 40. Qe4 {[%emt 0:02:20]} Bf6 {[%emt 0:02:11]} 41. Rd8+ 1-0

[Event "Gideon Japhet ACP Open 2018"]
[Site "Jerusalem"]
[Date "2018.07.03"]
[Round "4"]
[White "Erenberg, Ariel"]
[Black "Gurbanov, Andrei"]
[Result "1-0"]
[ECO "E20"]
[WhiteElo "2393"]
[BlackElo "2335"]
[Annotator "NA"]
[PlyCount "77"]
[EventDate "2018.07.01"]
[EventType "swiss"]
[EventCountry "ISR"]
[SourceTitle "playchess.com"]
[Source "ChessBase"]
[SourceQuality "1"]
[TimeControl "40/5400+30:1800+30"]

1. d4 {[%emt 0:00:00]} Nf6 {[%emt 0:00:06]} 2. c4 {[%emt 0:00:04]} e6 {[%emt 0:00:41]} 3. Nc3 {[%emt 0:00:07]} Bb4 {[%emt 0:01:45]} 4. f3 {[%emt 0:00:05]} c5 {[%emt 0:01:21]} 5. d5 {[%emt 0:00:08]} b5 {[%emt 0:05:50]} 6. e4 {[%emt 0:00:10]} bxc4 {[%emt 0:01:08]} 7. Bxc4 {[%emt 0:00:30]} e5 {[%emt 0:07:20]} 8. Bg5 {[%emt 0:17:06]} h6 {[%emt 0:04:51]} 9. Bh4 {[%emt 0:00:19]} d6 {[%emt 0:00:11]} 10. Nge2 {[%emt 0:01:25]} O-O {[%emt 0:01:51]} 11. O-O {[%emt 0:00:13]} g5 {[%emt 0:01:24]} 12. Bf2 {[%emt 0:09:17]} Nh5 {[%emt 0:00:25]} 13. Be3 {[%emt 0:06:29]} Nd7 {[%emt 0:05:28]} 14. a3 {[%emt 0:06:36]} Ba5 {[%emt 0:01:02]} 15. Rb1 {[%emt 0:00:27]} Ndf6 {[%emt 0:03:07]} 16. Qe1 {[%emt 0:11:42]} Rb8 {[%emt 0:01:17]} 17. Qf2 {[%emt 0:01:56]} Nf4 {[%emt 0:01:31]} 18. Kh1 {[%emt 0:01:00]} N6h5 {[%emt 0:04:10]} 19. Ng3 {[%emt 0:04:30]} Ng7 {[%emt 0:00:22]} 20. b4 {[%emt 0:05:15]} cxb4 {[%emt 0:01:54]} 21. Bxa7 {[%emt 0:00:15]} Rb7 {[%emt 0:05:13]} 22. axb4 {[%emt 0:00:07]} Bxb4 {[%emt 0:03:44]} 23. Nb5 Ba5 {[%emt 0:04:01]} 24. Be3 {[%emt 0:03:50]} f5 {[%emt 0:03:32]} 25. Nxd6 {[%emt 0:16:26]} Qxd6 {[%emt 0:10:37]} 26. Bc5 {[%emt 0:00:00]} Qb8 {[%emt 0:00:25]} 27. Rxb7 {[%emt 0:00:53]} Bxb7 {[%emt 0:00:07]} 28. Bxf8 {[%emt 0:00:08]} Qxf8 {[%emt 0:00:02]} 29. d6+ {[%emt 0:06:57]} Kh7 {[%emt 0:00:07]} 30. Qc5 {[%emt 0:00:41]} fxe4 {[%emt 0:03:42]} 31. Nxe4 {[%emt 0:02:39]} Bxe4 {[%emt 0:08:00]} 32. fxe4 {[%emt 0:00:04]} Bc3 {[%emt 0:00:58]} 33. Qc6 {[%emt 0:04:23]} Qb8 {[%emt 0:01:23]} 34. d7 {[%emt 0:00:22]} Qb2 {[%emt 0:04:23]} 35. Bg8+ {[%emt 0:02:38]} Kxg8 {[%emt 0:00:04]} 36. d8=Q+ {[%emt 0:00:04]} Kh7 {[%emt 0:00:04]} 37. Rg1 {[%emt 0:00:16]} Bd4 {[%emt 0:00:11]} 38. Qdf6 {[%emt 0:00:59]} Nfe6 {[%emt 0:05:04]} 39. Rf1 {[%emt 0:00:04]} 1-0

[Event "Gideon Japhet ACP Open 2018"]
[Site "Jerusalem"]
[Date "2018.07.03"]
[Round "4"]
[White "Veinberg, Nimrod"]
[Black "Yaniv, Ori"]
[Result "1/2-1/2"]
[ECO "A05"]
[WhiteElo "2390"]
[BlackElo "1913"]
[Annotator "NA"]
[PlyCount "82"]
[EventDate "2018.07.01"]
[EventType "swiss"]
[EventCountry "ISR"]
[SourceTitle "playchess.com"]
[Source "ChessBase"]
[SourceQuality "1"]
[TimeControl "40/5400+30:1800+30"]

1. Nf3 {[%emt 0:00:00]} Nf6 {[%emt 0:00:00]} 2. c4 {[%emt 0:00:52]} g6 {[%emt 0:00:10]} 3. Nc3 {[%emt 0:00:06]} Bg7 {[%emt 0:00:17]} 4. e4 {[%emt 0:00:30]} d6 {[%emt 0:00:10]} 5. d4 {[%emt 0:00:05]} O-O {[%emt 0:00:09]} 6. h3 {[%emt 0:00:03]} e5 {[%emt 0:00:34]} 7. d5 {[%emt 0:02:34]} Na6 {[%emt 0:00:07]} 8. Bg5 {[%emt 0:00:16]} Qe8 {[%emt 0:00:24]} 9. Be2 {[%emt 0:01:23]} Nd7 {[%emt 0:00:34]} 10. g4 {[%emt 0:02:26]} Ndc5 {[%emt 0:00:19]} 11. Rg1 {[%emt 0:04:03]} Kh8 {[%emt 0:02:22]} 12. Qd2 {[%emt 0:00:48]} f5 {[%emt 0:06:37]} 13. gxf5 {[%emt 0:00:29]} gxf5 {[%emt 0:00:08]} 14. Bh6 {[%emt 0:01:10]} Rg8 {[%emt 0:17:01]} 15. Bxg7+ {[%emt 0:01:50]} Rxg7 {[%emt 0:00:10]} 16. Rxg7 {[%emt 0:00:51]} Kxg7 {[%emt 0:00:10]} 17. exf5 {[%emt 0:00:36]} Bxf5 {[%emt 0:08:36]} 18. O-O-O {[%emt 0:00:38]} Bg6 {[%emt 0:04:39]} 19. Rg1 {[%emt 0:02:06]} Qf7 {[%emt 0:18:45]} 20. Rg4 {[%emt 0:21:35]} Rf8 {[%emt 0:07:31]} 21. b3 {[%emt 0:02:26]} Qf5 {[%emt 0:04:13]} 22. Kb2 {[%emt 0:01:23]} Nb4 {[%emt 0:01:20]} 23. Rg2 {[%emt 0:26:32]} Nbd3+ {[%emt 0:02:46]} 24. Ka3 {[%emt 0:00:08]} Nf4 {[%emt 0:00:46]} 25. Rg5 {[%emt 0:03:24]} Qxh3 {[%emt 0:02:02]} 26. Rg3 {[%emt 0:00:14]} Qf5 {[%emt 0:00:17]} 27. Nh4 {[%emt 0:00:51]} Qf6 {[%emt 0:00:33]} 28. Nxg6 {[%emt 0:00:07]} hxg6 {[%emt 0:01:21]} 29. b4 {[%emt 0:00:24]} Nd7 {[%emt 0:03:53]} 30. Bg4 {[%emt 0:00:58]} Qe7 {[%emt 0:06:09]} 31. Kb3 {[%emt 0:00:55]} Nf6 {[%emt 0:00:35]} 32. Bd1 {[%emt 0:00:13]} N6h5 {[%emt 0:00:41]} 33. Rg4 {[%emt 0:01:11]} Nf6 {[%emt 0:00:12]} 34. Rg1 {[%emt 0:01:15]} c6 {[%emt 0:03:22]} 35. Bc2 {[%emt 0:00:01]} cxd5 {[%emt 0:00:57]} 36. cxd5 {[%emt 0:00:02]} Qf7 {[%emt 0:00:47]} 37. Kb2 {[%emt 0:00:29]} Rc8 {[%emt 0:01:04]} 38. a3 {[%emt 0:05:17]} a6 {[%emt 0:03:33]} 39. Qd1 {[%emt 0:08:31]} Qc7 {[%emt 0:02:12]} 40. Rg3 {[%emt 0:00:47]} N6h5 {[%emt 0:02:27]} 41. Re3 {[%emt 0:31:42]} b5 {[%emt 0:02:33]} 1/2-1/2

[Event "Gideon Japhet ACP Open 2018"]
[Site "Jerusalem"]
[Date "2018.07.03"]
[Round "4"]
[White "Parkhov, Yair"]
[Black "Yaniv, Yuval"]
[Result "1-0"]
[ECO "A45"]
[WhiteElo "2364"]
[BlackElo "2054"]
[Annotator "NA"]
[PlyCount "85"]
[EventDate "2018.07.01"]
[EventType "swiss"]
[EventCountry "ISR"]
[SourceTitle "playchess.com"]
[Source "ChessBase"]
[SourceQuality "1"]
[TimeControl "40/5400+30:1800+30"]

1. d4 {[%emt 0:00:00]} Nf6 {[%emt 0:00:00]} 2. Bf4 {[%emt 0:00:00]} g6 {[%emt 0:00:23]} 3. Nc3 {[%emt 0:00:15]} Bg7 {[%emt 0:01:42]} 4. e4 {[%emt 0:00:09]} d6 {[%emt 0:00:27]} 5. Qd2 {[%emt 0:00:12]} a6 {[%emt 0:00:54]} 6. O-O-O {[%emt 0:01:46]} b5 {[%emt 0:02:15]} 7. f3 {[%emt 0:04:52]} Nbd7 {[%emt 0:02:00]} 8. Bh6 {[%emt 0:02:58]} Bxh6 {[%emt 0:03:53]} 9. Qxh6 {[%emt 0:00:07]} b4 {[%emt 0:00:30]} 10. Nce2 {[%emt 0:17:38]} e5 {[%emt 0:14:17]} 11. Nh3 {[%emt 0:08:04]} c5 {[%emt 0:10:38]} 12. dxc5 {[%emt 0:02:42]} Nxc5 {[%emt 0:10:10]} 13. Qd2 {[%emt 0:09:14]} Be6 {[%emt 0:15:56]} 14. Qxd6 {[%emt 0:07:55]} Nfd7 {[%emt 0:02:35]} 15. Kb1 {[%emt 0:03:59]} a5 {[%emt 0:04:54]} 16. Nc1 {[%emt 0:02:49]} Rb8 {[%emt 0:02:37]} 17. Nb3 {[%emt 0:05:38]} Nb7 {[%emt 0:13:32]} 18. Qc6 {[%emt 0:07:30]} Qb6 {[%emt 0:06:32]} 19. Bb5 {[%emt 0:02:01]} Qxc6 {[%emt 0:01:28]} 20. Bxc6 {[%emt 0:00:07]} Ke7 {[%emt 0:01:42]} 21. Ng5 {[%emt 0:01:57]} Ndc5 {[%emt 0:01:00]} 22. Nxe6 {[%emt 0:01:16]} Kxe6 {[%emt 0:00:09]} 23. Nxc5+ {[%emt 0:00:27]} Nxc5 {[%emt 0:00:02]} 24. Rd5 {[%emt 0:00:11]} Nb7 {[%emt 0:01:32]} 25. Rhd1 {[%emt 0:00:10]} Nd8 {[%emt 0:00:53]} 26. Rd7 {[%emt 0:01:25]} Kf6 {[%emt 0:00:16]} 27. R1d6+ {[%emt 0:00:16]} Kg7 {[%emt 0:00:22]} 28. Bd5 {[%emt 0:00:08]} Rf8 {[%emt 0:00:10]} 29. Ra6 {[%emt 0:00:11]} Kh6 {[%emt 0:00:51]} 30. Rxa5 {[%emt 0:00:15]} f5 {[%emt 0:01:01]} 31. Raa7 {[%emt 0:00:07]} fxe4 {[%emt 0:00:11]} 32. h4 {[%emt 0:00:18]} Rh8 {[%emt 0:00:36]} 33. fxe4 {[%emt 0:01:46]} Rb6 {[%emt 0:00:58]} 34. Ra8 {[%emt 0:01:08]} Rf6 {[%emt 0:00:10]} 35. a3 {[%emt 0:00:13]} Rff8 {[%emt 0:01:23]} 36. axb4 {[%emt 0:00:17]} Kh5 {[%emt 0:00:25]} 37. b5 {[%emt 0:00:28]} Kxh4 {[%emt 0:00:11]} 38. Ra3 {[%emt 0:00:57]} h5 {[%emt 0:01:04]} 39. b6 {[%emt 0:00:11]} Rf6 {[%emt 0:00:40]} 40. b7 {[%emt 0:01:52]} Nxb7 {[%emt 0:00:22]} 41. Rxb7 {[%emt 0:30:09]} Rf2 {[%emt 0:30:10]} 42. g3+ {[%emt 0:00:48]} Kg5 {[%emt 0:01:09]} 43. c4 1-0

[Event "Gideon Japhet ACP Open 2018"]
[Site "Jerusalem"]
[Date "2018.07.03"]
[Round "4"]
[White "Gluhovsky, Mark"]
[Black "Gov, Guy"]
[Result "1-0"]
[ECO "C26"]
[WhiteElo "2308"]
[BlackElo "1872"]
[Annotator "NA"]
[PlyCount "53"]
[EventDate "2018.07.01"]
[EventType "swiss"]
[EventCountry "ISR"]
[SourceTitle "playchess.com"]
[Source "ChessBase"]
[SourceQuality "1"]
[TimeControl "40/5400+30:1800+30"]

1. e4 {[%emt 0:06:52]} e5 {[%emt 0:00:00]} 2. Nc3 {[%emt 0:00:08]} Nf6 {[%emt 0:00:00]} 3. g3 {[%emt 0:00:07]} d5 {[%emt 0:00:00]} 4. exd5 {[%emt 0:00:07]} Nxd5 {[%emt 0:00:00]} 5. Bg2 {[%emt 0:00:05]} Nxc3 {[%emt 0:00:03]} 6. bxc3 {[%emt 0:00:06]} Bd6 {[%emt 0:00:11]} 7. Nf3 {[%emt 0:00:31]} O-O {[%emt 0:00:15]} 8. O-O {[%emt 0:00:09]} Nd7 {[%emt 0:00:05]} 9. Re1 {[%emt 0:00:50]} h6 10. d4 {[%emt 0:04:09]} exd4 {[%emt 0:01:31]} 11. cxd4 {[%emt 0:00:09]} Nb6 {[%emt 0:00:21]} 12. Qd3 {[%emt 0:03:36]} Be6 {[%emt 0:03:33]} 13. Bxh6 {[%emt 0:19:10]} gxh6 {[%emt 0:13:34]} 14. Rxe6 {[%emt 0:04:42]} fxe6 {[%emt 0:02:14]} 15. Qg6+ {[%emt 0:00:09]} Kh8 {[%emt 0:00:10]} 16. Qxh6+ {[%emt 0:00:24]} Kg8 {[%emt 0:00:06]} 17. Qg6+ {[%emt 0:14:44]} Kh8 {[%emt 0:02:18]} 18. Ng5 {[%emt 0:00:25]} Qe7 {[%emt 0:19:32]} 19. Re1 {[%emt 0:07:49]} Rf6 {[%emt 0:11:56]} 20. Qh5+ {[%emt 0:02:54]} Kg8 {[%emt 0:00:09]} 21. Bh3 {[%emt 0:03:20]} e5 {[%emt 0:30:54]} 22. Re4 {[%emt 0:05:22]} Qg7 {[%emt 0:09:42]} 23. Be6+ {[%emt 0:09:05]} Kf8 {[%emt 0:00:08]} 24. dxe5 {[%emt 0:07:46]} Qh6 {[%emt 0:02:51]} 25. Nh7+ {[%emt 0:01:04]} Kg7 {[%emt 0:02:23]} 26. exf6+ {[%emt 0:00:07]} Kxh7 {[%emt 0:00:26]} 27. Bf5+ 1-0

[Event "Gideon Japhet ACP Open 2018"]
[Site "Jerusalem"]
[Date "2018.07.03"]
[Round "4"]
[White "Khurtsilava, Inga"]
[Black "Yuffa, Daniil"]
[Result "0-1"]
[ECO "A01"]
[WhiteElo "2282"]
[BlackElo "2577"]
[Annotator "RC"]
[PlyCount "64"]
[EventDate "2018.07.01"]
[EventType "swiss"]
[EventCountry "ISR"]
[SourceTitle "playchess.com"]
[Source "ChessBase"]
[SourceQuality "1"]
[TimeControl "40/5400+30:1800+30"]

1. b3 {[%emt 0:13:28]} e5 {[%emt 0:00:00]} 2. Bb2 {[%emt 0:00:01]} Nc6 {[%emt 0:00:06]} 3. e3 {[%emt 0:00:09]} g6 {[%emt 0:01:00]} 4. Nf3 {[%emt 0:01:13]} Bg7 {[%emt 0:00:34]} 5. Bb5 {[%emt 0:00:13]} Nge7 {[%emt 0:00:30]} 6. d4 {[%emt 0:01:41]} e4 {[%emt 0:02:33]} 7. Nfd2 {[%emt 0:00:13]} d5 {[%emt 0:00:25]} 8. c4 {[%emt 0:01:05]} f5 {[%emt 0:04:05]} 9. cxd5 {[%emt 0:00:58]} Nxd5 {[%emt 0:00:17]} 10. Bxc6+ {[%emt 0:01:10]} bxc6 {[%emt 0:00:04]} 11. Ba3 {[%emt 0:00:36]} Ba6 {[%emt 0:07:36]} 12. Nc4 {[%emt 0:03:11]} Qg5 {[%emt 0:03:16]} 13. O-O {[%emt 0:11:09]} f4 {[%emt 0:00:44]} 14. Qc2 {[%emt 0:05:39]} O-O-O {[%emt 0:02:35]} 15. Qxe4 {[%emt 0:08:36]} Rhe8 {[%emt 0:02:56]} 16. Qf3 {[%emt 0:22:00]} fxe3 {[%emt 0:00:29]} 17. Bc5 {[%emt 0:00:45]} exf2+ {[%emt 0:12:17]} 18. Qxf2 {[%emt 0:01:05]} Bxc4 {[%emt 0:02:03]} 19. bxc4 {[%emt 0:00:07]} Ne3 {[%emt 0:00:11]} 20. Nd2 {[%emt 0:01:54]} Nxf1 {[%emt 0:00:10]} 21. Rxf1 {[%emt 0:02:14]} Qxc5 {[%emt 0:00:43]} 22. dxc5 {[%emt 0:03:48]} Bd4 {[%emt 0:00:06]} 23. Nf3 {[%emt 0:00:28]} Bxf2+ {[%emt 0:00:10]} 24. Kxf2 {[%emt 0:00:06]} Rd3 {[%emt 0:00:28]} 25. Rc1 {[%emt 0:00:06]} a5 {[%emt 0:00:52]} 26. Rc2 {[%emt 0:00:58]} a4 {[%emt 0:00:10]} 27. Nd2 {[%emt 0:01:12]} g5 {[%emt 0:01:11]} 28. Nb1 {[%emt 0:01:36]} Ree3 {[%emt 0:00:57]} 29. Rb2 {[%emt 0:00:57]} h5 {[%emt 0:01:47]} 30. Rb4 {[%emt 0:04:22]} g4 {[%emt 0:02:17]} 31. g3 {[%emt 0:02:24]} Re4 {[%emt 0:00:27]} 32. Rb2 {[%emt 0:00:47]} Rxc4 {[%emt 0:00:53]} 0-1